[Event "ROU-chT 1st League 2019"]
[Site "Mamaia"]
[Date "2019.09.28"]
[Round "8.25"]
[White "Oltean, Dorel"]
[Black "Tarlev, Konstantin"]
[Result "0-1"]
[ECO "B93"]
[WhiteElo "2333"]
[BlackElo "2559"]
[Annotator "ChessBase"]
[PlyCount "56"]
[EventDate "2019.09.21"]
[EventType "team-tourn"]
[EventCountry "ROU"]
[SourceTitle "playchess.com"]
[Source "ChessBase"]
[SourceQuality "1"]
[TimeControl "40/5400+30:1800+30"]

1. e4 {[%emt 0:00:54]} c5 {[%emt 0:00:03]} 2. Nf3 {[%emt 0:00:23]} d6 {[%emt 0:00:58]} 3. d4 {[%emt 0:00:33]} cxd4 {[%emt 0:00:04]} 4. Nxd4 {[%emt 0:00:06]} Nf6 {[%emt 0:00:03]} 5. Nc3 {[%emt 0:00:07]} a6 {[%emt 0:00:03]} 6. f4 {[%emt 0:01:07]} e5 {[%emt 0:01:28]} 7. Nf3 {[%emt 0:00:07]} Qc7 {[%emt 0:00:09]} 8. Bd3 {[%emt 0:00:39]} Be7 {[%emt 0:00:54]} 9. O-O {[%emt 0:00:13]} O-O {[%emt 0:00:07]} 10. Kh1 {[%emt 0:00:57]} Nbd7 {[%emt 0:08:35]} 11. Qe1 {[%emt 0:02:19]} b5 {[%emt 0:12:21]} 12. Nh4 {[%emt 0:02:20]} g6 {[%emt 0:19:10]} 13. f5 {[%emt 0:09:26]} b4 {[%emt 0:00:55]} 14. Nd1 {[%emt 0:00:47]} Nc5 {[%emt 0:06:41]} 15. Bh6 {[%emt 0:12:00]} Bb7 {[%emt 0:20:17]} 16. Bxf8 {[%emt 0:04:19]} Rxf8 {[%emt 0:00:03]} 17. Nf2 {[%emt 0:18:16]} d5 {[%emt 0:01:28]} 18. exd5 {[%emt 0:04:43]} Bxd5 {[%emt 0:00:03]} 19. fxg6 {[%emt 0:03:23]} hxg6 {[%emt 0:00:24]} 20. Bxg6 {[%emt 0:02:45]} fxg6 {[%emt 0:00:08]} 21. Nxg6 {[%emt 0:00:09]} Rf7 {[%emt 0:12:37]} 22. Qxe5 {[%emt 0:03:58]} Bxg2+ {[%emt 0:01:16]} 23. Kxg2 {[%emt 0:07:50]} Qb7+ {[%emt 0:00:08]} 24. Kg1 {[%emt 0:05:52]} Rg7 {[%emt 0:00:20]} 25. Nh1 {[%emt 0:02:18]} Rxg6+ {[%emt 0:00:23]} 26. Ng3 {[%emt 0:00:09]} Nce4 {[%emt 0:00:48]} 27. Rf5 {[%emt 0:04:14]} Bc5+ {[%emt 0:04:03]} 28. Kf1 {[%emt 0:03:32]} Qb5+ {[%emt 0:00:03]} 0-1

[Event "ROU-chT 1st League 2019"]
[Site "Mamaia"]
[Date "2019.09.28"]
[Round "8.26"]
[White "Morozov, Nichita"]
[Black "Florescu, Codrut-Constantin"]
[Result "0-1"]
[ECO "E15"]
[WhiteElo "2394"]
[BlackElo "2286"]
[Annotator "NA"]
[PlyCount "88"]
[EventDate "2019.09.21"]
[EventType "team-tourn"]
[EventCountry "ROU"]
[SourceTitle "playchess.com"]
[Source "ChessBase"]
[SourceQuality "1"]
[TimeControl "40/5400+30:1800+30"]

1. d4 {[%emt 0:00:00]} Nf6 {[%emt 0:00:35]} 2. c4 {[%emt 0:00:00]} e6 {[%emt 0:00:09]} 3. Nf3 {[%emt 0:00:56]} b6 {[%emt 0:00:05]} 4. g3 {[%emt 0:00:17]} Ba6 {[%emt 0:00:07]} 5. Qc2 {[%emt 0:01:16]} c5 {[%emt 0:00:16]} 6. Bg2 {[%emt 0:00:05]} Nc6 {[%emt 0:01:43]} 7. dxc5 {[%emt 0:02:09]} Bxc5 {[%emt 0:00:07]} 8. a3 {[%emt 0:01:05]} Rc8 {[%emt 0:06:43]} 9. Qa4 {[%emt 0:04:07]} Bxc4 {[%emt 0:35:22]} 10. Nbd2 {[%emt 0:14:13]} b5 {[%emt 0:02:30]} 11. Qc2 {[%emt 0:01:44]} Qb6 {[%emt 0:07:42]} 12. e3 {[%emt 0:00:52]} O-O {[%emt 0:08:23]} 13. b3 {[%emt 0:03:32]} Bd5 {[%emt 0:00:27]} 14. O-O {[%emt 0:01:28]} Be7 {[%emt 0:06:12]} 15. Qd3 {[%emt 0:01:48]} Na5 {[%emt 0:05:12]} 16. Bb2 {[%emt 0:05:50]} Bb7 {[%emt 0:00:37]} 17. Ng5 {[%emt 0:03:55]} g6 {[%emt 0:00:06]} 18. Bd4 {[%emt 0:00:01]} Qa6 {[%emt 0:01:08]} 19. e4 {[%emt 0:04:43]} Nc6 {[%emt 0:02:52]} 20. Bb2 {[%emt 0:01:16]} d6 {[%emt 0:01:28]} 21. Bh3 {[%emt 0:03:41]} Ne5 {[%emt 0:02:37]} 22. Qd4 {[%emt 0:02:05]} Rc2 {[%emt 0:01:37]} 23. Rac1 {[%emt 0:03:03]} Rxd2 {[%emt 0:00:29]} 24. Qxd2 {[%emt 0:00:07]} Nxe4 {[%emt 0:00:04]} 25. Qe2 {[%emt 0:00:22]} Nxg5 {[%emt 0:00:31]} 26. Bg2 {[%emt 0:00:02]} Bxg2 {[%emt 0:02:57]} 27. Kxg2 {[%emt 0:00:02]} Qb7+ {[%emt 0:00:06]} 28. f3 {[%emt 0:00:02]} Ngxf3 {[%emt 0:00:34]} 29. Rxf3 {[%emt 0:00:03]} Qxf3+ {[%emt 0:00:06]} 30. Qxf3 {[%emt 0:00:02]} Nxf3 {[%emt 0:00:04]} 31. Kxf3 {[%emt 0:00:02]} Ra8 {[%emt 0:00:49]} 32. Rc7 {[%emt 0:00:04]} Kf8 {[%emt 0:00:03]} 33. Bd4 {[%emt 0:00:19]} a6 {[%emt 0:00:05]} 34. a4 {[%emt 0:00:13]} bxa4 {[%emt 0:00:08]} 35. bxa4 {[%emt 0:00:04]} e5 {[%emt 0:00:16]} 36. Be3 {[%emt 0:00:05]} f5 {[%emt 0:01:00]} 37. Bh6+ {[%emt 0:00:05]} Ke8 {[%emt 0:00:04]} 38. h4 {[%emt 0:00:04]} Rb8 {[%emt 0:02:02]} 39. Ra7 {[%emt 0:00:02]} Rb3+ {[%emt 0:00:27]} 40. Kf2 {[%emt 0:00:00]} Rb2+ {[%emt 0:00:00]} 41. Kf3 {[%emt 0:00:08]} e4+ {[%emt 0:04:45]} 42. Ke3 {[%emt 0:00:05]} Rb3+ {[%emt 0:00:17]} 43. Kd4 {[%emt 0:00:08]} Rd3+ {[%emt 0:00:07]} 44. Kc4 {[%emt 0:00:02]} d5# 0-1

[Event "ROU-chT 1st League 2019"]
[Site "Mamaia"]
[Date "2019.09.28"]
[Round "8.27"]
[White "Oltean, Liviu-Ioan"]
[Black "Ionescu, Constantin"]
[Result "1/2-1/2"]
[ECO "C41"]
[WhiteElo "2313"]
[BlackElo "2426"]
[Annotator "NA"]
[PlyCount "44"]
[EventDate "2019.09.21"]
[EventType "team-tourn"]
[EventCountry "ROU"]
[SourceTitle "playchess.com"]
[Source "ChessBase"]
[SourceQuality "1"]
[TimeControl "40/5400+30:1800+30"]

1. e4 {[%emt 0:01:25]} d6 {[%emt 0:00:00]} 2. d4 {[%emt 0:00:40]} Nf6 {[%emt 0:00:00]} 3. Nc3 {[%emt 0:01:43]} e5 {[%emt 0:00:04]} 4. Nf3 {[%emt 0:04:34]} Nbd7 {[%emt 0:00:12]} 5. Be2 {[%emt 0:02:42]} Be7 {[%emt 0:00:10]} 6. O-O {[%emt 0:00:10]} O-O {[%emt 0:00:08]} 7. Be3 {[%emt 0:01:59]} c6 {[%emt 0:00:15]} 8. h3 {[%emt 0:00:38]} Qc7 {[%emt 0:00:14]} 9. Re1 {[%emt 0:06:49]} b5 {[%emt 0:01:48]} 10. a3 {[%emt 0:01:07]} Bb7 {[%emt 0:00:57]} 11. Bd3 {[%emt 0:09:40]} Rfe8 {[%emt 0:03:52]} 12. Bg5 {[%emt 0:00:36]} a6 {[%emt 0:00:57]} 13. Qd2 {[%emt 0:02:36]} Bf8 {[%emt 0:00:41]} 14. dxe5 {[%emt 0:01:56]} dxe5 {[%emt 0:00:17]} 15. Rad1 {[%emt 0:00:39]} h6 {[%emt 0:16:02]} 16. Bh4 {[%emt 0:01:21]} Rad8 {[%emt 0:01:11]} 17. g4 {[%emt 0:02:12]} Be7 {[%emt 0:00:10]} 18. Qe3 {[%emt 0:01:13]} Nf8 {[%emt 0:08:01]} 19. Bg3 {[%emt 0:06:31]} Ng6 {[%emt 0:00:33]} 20. Bf1 {[%emt 0:02:34]} Bc8 {[%emt 0:01:56]} 21. Rxd8 {[%emt 0:02:24]} Rxd8 {[%emt 0:01:29]} 22. Rd1 {[%emt 0:02:13]} Rxd1 1/2-1/2

[Event "ROU-chT 1st League 2019"]
[Site "Mamaia"]
[Date "2019.09.28"]
[Round "8.28"]
[White "Cosma, Ioan"]
[Black "Talu, Mircea"]
[Result "1-0"]
[ECO "A46"]
[WhiteElo "2394"]
[BlackElo "2288"]
[Annotator "NA"]
[PlyCount "111"]
[EventDate "2019.09.21"]
[EventType "team-tourn"]
[EventCountry "ROU"]
[SourceTitle "playchess.com"]
[Source "ChessBase"]
[SourceQuality "1"]
[TimeControl "40/5400+30:1800+30"]

1. d4 {[%emt 0:00:00]} Nf6 {[%emt 0:04:33]} 2. Nf3 {[%emt 0:00:00]} e6 {[%emt 0:00:11]} 3. g3 {[%emt 0:00:00]} b5 {[%emt 0:00:25]} 4. Bg2 {[%emt 0:00:13]} Bb7 {[%emt 0:00:07]} 5. O-O {[%emt 0:00:14]} c5 {[%emt 0:00:22]} 6. Na3 {[%emt 0:00:54]} a6 {[%emt 0:00:58]} 7. c4 {[%emt 0:00:07]} b4 {[%emt 0:00:05]} 8. Nc2 {[%emt 0:00:09]} cxd4 {[%emt 0:00:05]} 9. Nfxd4 {[%emt 0:01:00]} Bxg2 {[%emt 0:00:08]} 10. Kxg2 {[%emt 0:00:06]} Qc8 {[%emt 0:00:08]} 11. Qd3 {[%emt 0:00:32]} Nc6 {[%emt 0:00:19]} 12. Nxc6 {[%emt 0:00:41]} Qxc6+ {[%emt 0:00:08]} 13. Qf3 {[%emt 0:00:03]} Qxf3+ {[%emt 0:00:32]} 14. Kxf3 {[%emt 0:00:11]} Rc8 {[%emt 0:00:04]} 15. b3 {[%emt 0:03:39]} d5 {[%emt 0:00:07]} 16. Ne3 {[%emt 0:00:30]} Bc5 {[%emt 0:00:13]} 17. cxd5 {[%emt 0:08:45]} Bd4 {[%emt 0:00:09]} 18. Rb1 {[%emt 0:00:49]} Bxe3 {[%emt 0:00:07]} 19. Bxe3 {[%emt 0:01:01]} Nxd5 {[%emt 0:00:08]} 20. Bd4 {[%emt 0:04:42]} f6 {[%emt 0:01:41]} 21. Rbc1 {[%emt 0:02:57]} Kd7 {[%emt 0:00:08]} 22. e4 {[%emt 0:01:05]} Rxc1 {[%emt 0:01:06]} 23. Rxc1 {[%emt 0:01:35]} Ne7 {[%emt 0:00:08]} 24. Bc5 {[%emt 0:05:40]} Nc6 {[%emt 0:00:17]} 25. Ke3 {[%emt 0:04:50]} a5 {[%emt 0:08:01]} 26. f4 {[%emt 0:01:04]} a4 {[%emt 0:16:37]} 27. Kd3 {[%emt 0:04:59]} axb3 {[%emt 0:00:36]} 28. axb3 {[%emt 0:00:09]} Kc7 {[%emt 0:00:41]} 29. Kc4 {[%emt 0:07:00]} Rd8 {[%emt 0:00:18]} 30. Ra1 {[%emt 0:05:21]} Kb7 {[%emt 0:09:16]} 31. Ra2 {[%emt 0:02:43]} Kc7 {[%emt 0:36:39]} 32. Ra6 {[%emt 0:03:14]} Rb8 {[%emt 0:00:30]} 33. Ra4 {[%emt 0:01:25]} Rd8 {[%emt 0:00:23]} 34. Bxb4 {[%emt 0:00:24]} Nxb4 {[%emt 0:03:04]} 35. Kxb4 {[%emt 0:00:43]} Kb6 {[%emt 0:00:06]} 36. Kc3 {[%emt 0:00:10]} Rd1 {[%emt 0:00:05]} 37. Rd4 {[%emt 0:00:20]} Rh1 {[%emt 0:00:18]} 38. Rd6+ {[%emt 0:02:47]} Kc5 {[%emt 0:00:33]} 39. Rxe6 {[%emt 0:00:20]} Rxh2 {[%emt 0:00:05]} 40. b4+ {[%emt 0:00:00]} Kb5 {[%emt 0:00:00]} 41. Re7 {[%emt 0:00:45]} g6 {[%emt 0:02:06]} 42. Rb7+ {[%emt 0:01:22]} Kc6 {[%emt 0:00:05]} 43. Rf7 {[%emt 0:00:05]} Rh3 {[%emt 0:00:03]} 44. Kc4 {[%emt 0:00:25]} Rxg3 {[%emt 0:01:16]} 45. Rxf6+ {[%emt 0:00:06]} Kd7 {[%emt 0:00:33]} 46. b5 {[%emt 0:09:05]} Re3 {[%emt 0:09:13]} 47. Kd5 {[%emt 0:02:55]} Rd3+ {[%emt 0:01:18]} 48. Kc4 {[%emt 0:01:10]} Re3 {[%emt 0:00:22]} 49. e5 {[%emt 0:00:09]} g5 {[%emt 0:00:11]} 50. Kd5 {[%emt 0:06:23]} Rb3 {[%emt 0:05:24]} 51. Rd6+ {[%emt 0:08:04]} Ke7 {[%emt 0:01:27]} 52. Kc4 {[%emt 0:00:46]} Re3 {[%emt 0:00:20]} 53. b6 {[%emt 0:00:58]} Re4+ {[%emt 0:01:46]} 54. Kd5 {[%emt 0:02:51]} Rxf4 {[%emt 0:00:35]} 55. Rh6 {[%emt 0:00:26]} Kf7 {[%emt 0:01:43]} 56. Rf6+ {[%emt 0:00:41]} 1-0

[Event "ROU-chT 1st League 2019"]
[Site "Mamaia"]
[Date "2019.09.28"]
[Round "8.29"]
[White "Toma Andreica, Alin"]
[Black "Itkis, Boris"]
[Result "0-1"]
[ECO "B24"]
[WhiteElo "2163"]
[BlackElo "2323"]
[Annotator "NA"]
[PlyCount "50"]
[EventDate "2019.09.21"]
[EventType "team-tourn"]
[EventCountry "ROU"]
[SourceTitle "playchess.com"]
[Source "ChessBase"]
[SourceQuality "1"]
[TimeControl "40/5400+30:1800+30"]

1. e4 {[%emt 0:00:21]} c5 {[%emt 0:00:00]} 2. Nc3 {[%emt 0:00:40]} Nc6 {[%emt 0:01:15]} 3. g3 {[%emt 0:00:46]} g6 {[%emt 0:00:05]} 4. Bg2 {[%emt 0:00:10]} Bg7 {[%emt 0:00:06]} 5. f4 {[%emt 0:00:31]} d6 {[%emt 0:00:05]} 6. Nf3 {[%emt 0:00:19]} e6 {[%emt 0:01:02]} 7. O-O {[%emt 0:02:41]} Nge7 {[%emt 0:00:06]} 8. d3 {[%emt 0:00:12]} O-O {[%emt 0:00:07]} 9. Be3 {[%emt 0:00:24]} Nd4 {[%emt 0:04:05]} 10. Qd2 {[%emt 0:01:02]} Nec6 {[%emt 0:08:48]} 11. Nd1 {[%emt 0:01:44]} Nxf3+ {[%emt 0:00:06]} 12. Bxf3 {[%emt 0:00:07]} b6 {[%emt 0:07:50]} 13. c3 {[%emt 0:01:52]} Ba6 {[%emt 0:01:22]} 14. Nf2 {[%emt 0:03:54]} Rc8 {[%emt 0:00:31]} 15. Rfc1 {[%emt 0:05:10]} d5 {[%emt 0:01:34]} 16. exd5 {[%emt 0:11:26]} exd5 {[%emt 0:00:51]} 17. d4 {[%emt 0:00:13]} Re8 {[%emt 0:09:14]} 18. dxc5 {[%emt 0:01:50]} d4 {[%emt 0:00:09]} 19. cxd4 {[%emt 0:08:56]} Bxd4 {[%emt 0:00:20]} 20. Bxd4 {[%emt 0:10:57]} Nxd4 {[%emt 0:00:08]} 21. Kg2 {[%emt 0:00:27]} bxc5 {[%emt 0:04:13]} 22. b4 {[%emt 0:16:13]} Nxf3 {[%emt 0:01:52]} 23. Qxd8 {[%emt 0:00:04]} Rcxd8 {[%emt 0:00:07]} 24. Kxf3 {[%emt 0:00:11]} Bb7+ {[%emt 0:00:14]} 25. Kg4 {[%emt 0:00:36]} Rd2 {[%emt 0:00:14]} 0-1

[Event "ROU-chT 1st League 2019"]
[Site "Mamaia"]
[Date "2019.09.28"]
[Round "8.30"]
[White "Ileana, George"]
[Black "Bobocea, Laurentiu-Vlad"]
[Result "1-0"]
[ECO "A05"]
[WhiteElo "2349"]
[BlackElo "1921"]
[Annotator "NA"]
[PlyCount "93"]
[EventDate "2019.09.21"]
[EventType "team-tourn"]
[EventCountry "ROU"]
[SourceTitle "playchess.com"]
[Source "ChessBase"]
[SourceQuality "1"]
[TimeControl "40/5400+30:1800+30"]

1. Nf3 {[%emt 0:00:00]} Nf6 {[%emt 0:04:47]} 2. g3 {[%emt 0:00:00]} g6 {[%emt 0:01:50]} 3. Bg2 {[%emt 0:00:00]} Bg7 {[%emt 0:00:08]} 4. O-O {[%emt 0:00:00]} O-O {[%emt 0:00:03]} 5. d4 {[%emt 0:00:00]} d6 {[%emt 0:00:32]} 6. Nbd2 {[%emt 0:00:03]} b5 {[%emt 0:05:59]} 7. Ne1 {[%emt 0:01:43]} c6 {[%emt 0:02:03]} 8. a4 {[%emt 0:00:03]} bxa4 {[%emt 0:02:59]} 9. Rxa4 {[%emt 0:00:23]} Qc7 {[%emt 0:02:20]} 10. Nd3 {[%emt 0:01:09]} Nbd7 {[%emt 0:03:48]} 11. b3 {[%emt 0:00:05]} e5 {[%emt 0:03:39]} 12. dxe5 {[%emt 0:00:30]} Nxe5 {[%emt 0:00:41]} 13. Nxe5 {[%emt 0:01:37]} dxe5 {[%emt 0:00:06]} 14. Nc4 {[%emt 0:00:12]} Rd8 {[%emt 0:02:53]} 15. Bd2 {[%emt 0:00:25]} Be6 {[%emt 0:06:08]} 16. Ba5 {[%emt 0:01:22]} Rxd1 {[%emt 0:00:06]} 17. Bxc7 {[%emt 0:00:04]} Rxf1+ {[%emt 0:00:29]} 18. Kxf1 {[%emt 0:00:06]} e4 {[%emt 0:02:10]} 19. Nb6 {[%emt 0:01:34]} Re8 {[%emt 0:01:04]} 20. Rxa7 {[%emt 0:00:07]} Bf5 {[%emt 0:11:16]} 21. c4 {[%emt 0:02:05]} Bf8 {[%emt 0:01:31]} 22. Ra8 {[%emt 0:01:40]} Rxa8 {[%emt 0:00:20]} 23. Nxa8 {[%emt 0:00:03]} c5 {[%emt 0:03:20]} 24. e3 {[%emt 0:00:10]} Nd7 {[%emt 0:02:14]} 25. Nb6 {[%emt 0:02:58]} Nxb6 {[%emt 0:00:27]} 26. Bxb6 {[%emt 0:00:04]} h5 {[%emt 0:02:41]} 27. Ke1 {[%emt 0:00:43]} Bd6 {[%emt 0:00:42]} 28. Kd2 {[%emt 0:00:15]} Kf8 {[%emt 0:00:32]} 29. Kc3 {[%emt 0:00:02]} Ke8 {[%emt 0:02:11]} 30. b4 {[%emt 0:00:22]} cxb4+ {[%emt 0:00:44]} 31. Kb3 {[%emt 0:00:04]} Be7 {[%emt 0:06:28]} 32. c5 {[%emt 0:00:14]} Be6+ {[%emt 0:00:07]} 33. Kxb4 {[%emt 0:00:05]} Bd5 {[%emt 0:00:06]} 34. Bf1 {[%emt 0:00:29]} Bc6 {[%emt 0:01:25]} 35. Bb5 {[%emt 0:00:35]} Kd7 {[%emt 0:00:03]} 36. Bc4 {[%emt 0:00:04]} Ke8 {[%emt 0:01:01]} 37. Bc7 {[%emt 0:00:55]} h4 {[%emt 0:04:24]} 38. Be5 {[%emt 0:01:16]} hxg3 {[%emt 0:00:10]} 39. hxg3 {[%emt 0:00:06]} Bd8 {[%emt 0:07:08]} 40. Bd6 {[%emt 0:00:00]} Bf6 {[%emt 0:00:00]} 41. Ka5 {[%emt 0:01:01]} Bc3+ {[%emt 0:14:06]} 42. Kb6 {[%emt 0:00:02]} Ba4 {[%emt 0:00:34]} 43. c6 {[%emt 0:00:08]} Bxc6 {[%emt 0:01:55]} 44. Kxc6 {[%emt 0:00:03]} Be1 {[%emt 0:00:03]} 45. Kd5 {[%emt 0:00:13]} f5 {[%emt 0:00:45]} 46. Ke6 {[%emt 0:00:08]} Bxf2 {[%emt 0:00:31]} 47. Be7 {[%emt 0:00:03]} 1-0

[Event "ROU-chT 1st League 2019"]
[Site "Mamaia"]
[Date "2019.09.29"]
[Round "9.1"]
[White "Tarlev, Konstantin"]
[Black "Kuzubov, Yuriy"]
[Result "1/2-1/2"]
[ECO "C42"]
[WhiteElo "2559"]
[BlackElo "2636"]
[Annotator "ChessBase"]
[PlyCount "33"]
[EventDate "2019.09.21"]
[EventType "team-tourn"]
[EventCountry "ROU"]
[SourceTitle "playchess.com"]
[Source "ChessBase"]
[SourceQuality "1"]
[TimeControl "40/5400+30:1800+30"]

1. e4 {[%emt 0:00:00]} e5 {[%emt 0:00:00]} 2. Nf3 {[%emt 0:00:00]} Nf6 {[%emt 0:00:40]} 3. Nxe5 {[%emt 0:00:12]} d6 {[%emt 0:00:08]} 4. Nf3 {[%emt 0:00:13]} Nxe4 {[%emt 0:00:19]} 5. Qe2 {[%emt 0:00:41]} Qe7 {[%emt 0:00:08]} 6. d3 {[%emt 0:00:38]} Nf6 {[%emt 0:00:43]} 7. Nc3 {[%emt 0:00:35]} Qxe2+ {[%emt 0:05:24]} 8. Bxe2 {[%emt 0:00:49]} g6 {[%emt 0:00:14]} 9. Nd4 {[%emt 0:02:49]} a6 {[%emt 0:01:43]} 10. Bf4 {[%emt 0:01:02]} Bg7 {[%emt 0:00:48]} 11. h3 {[%emt 0:01:46]} Bd7 {[%emt 0:02:51]} 12. Bf3 {[%emt 0:01:45]} Nc6 {[%emt 0:00:39]} 13. Nxc6 {[%emt 0:00:37]} Bxc6 {[%emt 0:00:42]} 14. Bxc6+ {[%emt 0:00:18]} bxc6 {[%emt 0:00:06]} 15. O-O-O {[%emt 0:00:36]} Kd7 {[%emt 0:01:26]} 16. Rhe1 {[%emt 0:01:13]} Rhe8 {[%emt 0:00:36]} 17. Bd2 1/2-1/2

[Event "ROU-chT 1st League 2019"]
[Site "Mamaia"]
[Date "2019.09.29"]
[Round "9.2"]
[White "Baklan, Vladimir"]
[Black "Morozov, Nichita"]
[Result "1-0"]
[ECO "C41"]
[WhiteElo "2604"]
[BlackElo "2394"]
[Annotator "ChessBase"]
[PlyCount "91"]
[EventDate "2019.09.21"]
[EventType "team-tourn"]
[EventCountry "ROU"]
[SourceTitle "playchess.com"]
[Source "ChessBase"]
[SourceQuality "1"]
[TimeControl "40/5400+30:1800+30"]

1. e4 {[%emt 0:00:00]} d6 {[%emt 0:00:19]} 2. d4 {[%emt 0:00:00]} Nf6 {[%emt 0:00:02]} 3. Nc3 {[%emt 0:00:00]} e5 {[%emt 0:00:02]} 4. Nf3 {[%emt 0:00:17]} Nbd7 {[%emt 0:00:04]} 5. Bc4 {[%emt 0:00:32]} Be7 {[%emt 0:00:04]} 6. a4 {[%emt 0:00:07]} O-O {[%emt 0:00:16]} 7. O-O {[%emt 0:00:23]} a5 {[%emt 0:00:02]} 8. Ba2 {[%emt 0:01:45]} b6 {[%emt 0:00:42]} 9. Qe2 {[%emt 0:02:55]} Bb7 {[%emt 0:24:15]} 10. Rd1 {[%emt 0:01:07]} exd4 {[%emt 0:02:55]} 11. Nxd4 {[%emt 0:03:09]} Re8 {[%emt 0:00:57]} 12. Bf4 {[%emt 0:07:59]} Nc5 {[%emt 0:10:35]} 13. f3 {[%emt 0:06:38]} Nh5 {[%emt 0:02:20]} 14. Be3 {[%emt 0:08:26]} Bg5 {[%emt 0:00:46]} 15. Nf5 {[%emt 0:04:12]} Bxe3+ {[%emt 0:08:57]} 16. Qxe3 {[%emt 0:02:20]} Qf6 {[%emt 0:03:23]} 17. Qd2 {[%emt 0:08:45]} Ne6 {[%emt 0:00:43]} 18. Bd5 {[%emt 0:11:23]} Bxd5 {[%emt 0:01:33]} 19. Nxd5 {[%emt 0:00:02]} Qd8 {[%emt 0:04:05]} 20. Qc3 {[%emt 0:01:14]} Qg5 {[%emt 0:05:26]} 21. h4 {[%emt 0:07:31]} Qd8 {[%emt 0:00:02]} 22. g4 {[%emt 0:00:14]} Nf6 {[%emt 0:00:04]} 23. Nxf6+ {[%emt 0:00:18]} Qxf6 {[%emt 0:00:03]} 24. Qxf6 {[%emt 0:00:06]} gxf6 {[%emt 0:00:03]} 25. Kf2 {[%emt 0:00:55]} Rab8 {[%emt 0:01:02]} 26. Kg3 {[%emt 0:02:50]} b5 {[%emt 0:00:44]} 27. b3 {[%emt 0:00:43]} h5 {[%emt 0:00:57]} 28. Rd5 {[%emt 0:03:50]} bxa4 {[%emt 0:00:15]} 29. Rxa4 {[%emt 0:00:11]} hxg4 30. Nh6+ {[%emt 0:00:15]} Kg7 {[%emt 0:00:32]} 31. Nxg4 {[%emt 0:00:05]} Nc5 {[%emt 0:00:10]} 32. Rxa5 {[%emt 0:00:30]} Ra8 {[%emt 0:00:03]} 33. Rxa8 {[%emt 0:04:50]} Rxa8 {[%emt 0:00:02]} 34. b4 {[%emt 0:00:05]} Nb7 {[%emt 0:01:32]} 35. h5 {[%emt 0:00:38]} Ra2 {[%emt 0:00:23]} 36. h6+ {[%emt 0:00:05]} Kh7 {[%emt 0:00:04]} 37. Rh5 {[%emt 0:00:09]} Ra8 {[%emt 0:00:42]} 38. Kh4 {[%emt 0:05:07]} Ra1 {[%emt 0:01:32]} 39. Kg3 {[%emt 0:02:16]} Ra8 {[%emt 0:00:07]} 40. f4 {[%emt 0:00:00]} Ra3+ {[%emt 0:00:00]} 41. Kh4 {[%emt 0:02:11]} Ra1 {[%emt 0:00:16]} 42. Kg3 {[%emt 0:01:10]} Ra3+ {[%emt 0:00:05]} 43. Kg2 {[%emt 0:00:15]} Ra8 {[%emt 0:00:07]} 44. f5 {[%emt 0:00:17]} Nd8 {[%emt 0:00:08]} 45. Nxf6+ {[%emt 0:00:08]} Kh8 {[%emt 0:00:02]} 46. b5 {[%emt 0:00:24]} 1-0

[Event "ROU-chT 1st League 2019"]
[Site "Mamaia"]
[Date "2019.09.29"]
[Round "9.3"]
[White "Ionescu, Constantin"]
[Black "Rogozenco, Dorian"]
[Result "1/2-1/2"]
[ECO "D02"]
[WhiteElo "2426"]
[BlackElo "2491"]
[Annotator "ChessBase"]
[PlyCount "39"]
[EventDate "2019.09.21"]
[EventType "team-tourn"]
[EventCountry "ROU"]
[SourceTitle "playchess.com"]
[Source "ChessBase"]
[SourceQuality "1"]
[TimeControl "40/5400+30:1800+30"]

1. Nf3 {[%emt 0:00:00]} d5 {[%emt 0:00:00]} 2. d4 {[%emt 0:00:00]} Nf6 {[%emt 0:00:03]} 3. c4 {[%emt 0:00:00]} c6 {[%emt 0:00:11]} 4. Qc2 {[%emt 0:01:54]} g6 {[%emt 0:00:42]} 5. Bf4 {[%emt 0:00:08]} Bg7 {[%emt 0:00:14]} 6. e3 {[%emt 0:00:03]} O-O {[%emt 0:00:26]} 7. Nc3 {[%emt 0:00:05]} c5 {[%emt 0:00:52]} 8. dxc5 {[%emt 0:00:16]} Qa5 {[%emt 0:00:17]} 9. Rd1 {[%emt 0:00:06]} dxc4 {[%emt 0:01:45]} 10. Bxc4 {[%emt 0:00:08]} Qxc5 {[%emt 0:00:15]} 11. Bb3 {[%emt 0:00:23]} Bf5 {[%emt 0:03:27]} 12. e4 {[%emt 0:06:25]} Bg4 {[%emt 0:02:28]} 13. Nd5 {[%emt 0:10:30]} Nbd7 {[%emt 0:01:43]} 14. Be3 {[%emt 0:05:54]} Qxc2 {[%emt 0:28:00]} 15. Nxe7+ {[%emt 0:00:09]} Kh8 {[%emt 0:00:05]} 16. Bxc2 {[%emt 0:00:08]} Rfe8 {[%emt 0:00:12]} 17. Nd5 {[%emt 0:05:11]} Rac8 {[%emt 0:00:05]} 18. Nxf6 {[%emt 0:03:49]} Nxf6 {[%emt 0:00:43]} 19. Bb3 {[%emt 0:00:48]} Nxe4 {[%emt 0:00:17]} 20. O-O {[%emt 0:01:54]} 1/2-1/2

[Event "ROU-chT 1st League 2019"]
[Site "Mamaia"]
[Date "2019.09.29"]
[Round "9.4"]
[White "Manolache, Marius"]
[Black "Cosma, Ioan"]
[Result "1-0"]
[ECO "E00"]
[WhiteElo "2548"]
[BlackElo "2394"]
[Annotator "ChessBase"]
[PlyCount "71"]
[EventDate "2019.09.21"]
[EventType "team-tourn"]
[EventCountry "ROU"]
[SourceTitle "playchess.com"]
[Source "ChessBase"]
[SourceQuality "1"]
[TimeControl "40/5400+30:1800+30"]

1. d4 {[%emt 0:00:00]} e6 {[%emt 0:00:00]} 2. c4 {[%emt 0:00:00]} Bb4+ {[%emt 0:00:00]} 3. Nc3 {[%emt 0:00:02]} c5 {[%emt 0:00:07]} 4. e3 {[%emt 0:00:31]} Nf6 {[%emt 0:00:12]} 5. Bd2 {[%emt 0:01:34]} cxd4 {[%emt 0:06:03]} 6. exd4 {[%emt 0:00:07]} O-O {[%emt 0:00:55]} 7. Nf3 {[%emt 0:05:35]} d5 {[%emt 0:01:40]} 8. c5 {[%emt 0:05:32]} b6 {[%emt 0:02:18]} 9. a3 {[%emt 0:03:43]} Bxc3 {[%emt 0:00:43]} 10. Bxc3 {[%emt 0:00:05]} Ne4 {[%emt 0:00:59]} 11. Rc1 {[%emt 0:00:08]} a5 {[%emt 0:02:55]} 12. Bb5 {[%emt 0:07:27]} Bd7 {[%emt 0:11:42]} 13. a4 {[%emt 0:02:46]} Nc6 {[%emt 0:06:07]} 14. O-O {[%emt 0:03:11]} f6 {[%emt 0:03:30]} 15. Qe2 {[%emt 0:11:08]} Re8 {[%emt 0:01:50]} 16. Rfd1 {[%emt 0:00:32]} Qc7 {[%emt 0:02:15]} 17. Be1 {[%emt 0:06:32]} Qb7 {[%emt 0:02:29]} 18. Qe3 {[%emt 0:02:38]} Rac8 {[%emt 0:11:33]} 19. Qd3 {[%emt 0:07:06]} Nb8 {[%emt 0:01:38]} 20. b4 {[%emt 0:01:05]} axb4 {[%emt 0:01:31]} 21. Bxb4 {[%emt 0:01:39]} Rc7 {[%emt 0:05:11]} 22. Nd2 {[%emt 0:05:17]} bxc5 {[%emt 0:16:21]} 23. dxc5 {[%emt 0:00:09]} Bc6 {[%emt 0:02:53]} 24. Nxe4 {[%emt 0:12:16]} dxe4 {[%emt 0:00:10]} 25. Qe2 {[%emt 0:01:03]} Nd7 {[%emt 0:04:56]} 26. Rd6 {[%emt 0:05:41]} Ne5 {[%emt 0:01:57]} 27. Ba5 {[%emt 0:00:34]} Rcc8 {[%emt 0:01:32]} 28. Ba6 {[%emt 0:00:59]} Qa8 {[%emt 0:00:20]} 29. Bxc8 {[%emt 0:00:17]} Rxc8 {[%emt 0:00:09]} 30. Bc3 {[%emt 0:00:29]} Nd3 {[%emt 0:01:53]} 31. Ra1 {[%emt 0:00:28]} Bd5 {[%emt 0:02:38]} 32. Qg4 {[%emt 0:01:03]} Qb7 {[%emt 0:02:13]} 33. c6 {[%emt 0:03:52]} Bxc6 {[%emt 0:03:01]} 34. Bxf6 {[%emt 0:00:44]} Qf7 {[%emt 0:00:46]} 35. Bd4 {[%emt 0:00:37]} Nf4 {[%emt 0:01:23]} 36. Be3 {[%emt 0:00:57]} 1-0